Cogmind - Beta 13 @@@ ROGUE MODE // 2024.04.07 @ 19:13:29 Player: Evilsquid Result: Self-destructed Performance ------------- Evolutions (1) 500 Regions Visited (2) 400 Robots Destroyed (19) 95 Value Destroyed (457) 457 Prototype IDs (0) 0 Alien Tech Used (0) 0 Bonus (0) 0 TOTAL SCORE: 1452 Bonus ------- None Cogmind --------- Core Integrity 382/400 Matter 257/300 Energy 250/250 System Corruption 0% Temperature Cool (1) Movement Treading (160) Location -9/Materials Parts ------- > --- POWER (1) -------- Ion Engine > --- PROPULSION (2) --- Light Treads Light Treads > --- UTILITY (4) ------ Large Storage Unit Light Armor Plating > --- WEAPON (2) ------- Autogun Autogun > --- INVENTORY (15) --- Ion Engine Light Treads Light Treads Improved Terrain Scanner Light Armor Plating Light Armor Plating Light Armor Plating Hacking Suite Assault Rifle Assault Rifle Light Assault Rifle Autogun Autogun Light Cannon Peak State ------------ > --- POWER ------------ Ion Engine > --- PROPULSION ------- Light Treads Light Treads > --- UTILITY ---------- Large Storage Unit Light Armor Plating > --- WEAPON ----------- Autogun Autogun > --- INVENTORY -------- Ion Engine Light Treads Light Treads Improved Terrain Scanner Light Armor Plating Light Armor Plating Light Armor Plating Hacking Suite Assault Rifle Assault Rifle Light Assault Rifle Autogun Autogun Light Cannon [Rating: 11] Favorites ----------- Power Ion Engine Engine Ion Engine Propulsion Light Treads Treads Light Treads Wheel Wheel Utility Light Armor Plating Device Improved Terrain Scanner Storage Small Storage Unit Protection Light Armor Plating Weapon Assault Rifle Ballistic Gun Assault Rifle Build | -11 -10 -9 ------- Run | Yrd Mat Mat Slots Evolved 2 | . . 2 Power . | . . . Propulsion . | . . . Utility 2 | . . 2 Weapon . | . . . Parts Attached 18 | 9 9 . Power 3 | 1 2 . Engine 3 | 1 2 . Core . | . . . Reactor . | . . . Propulsion 7 | 4 3 . Treads 5 | 2 3 . Leg . | . . . Wheel 2 | 2 . . Hover . | . . . Flight . | . . . Utility 4 | 2 2 . Device 1 | 1 . . Storage 2 | 1 1 . Processor . | . . . Hackware . | . . . Protection 1 | . 1 . Artifact . | . . . Weapon 4 | 2 2 . Energy Gun . | . . . Energy Cannon . | . . . Ballistic Gun 4 | 2 2 . Ballistic Cannon . | . . . Launcher . | . . . Special Weapon . | . . . Impact Weapon . | . . . Slashing Weapon . | . . . Piercing Weapon . | . . . Special Melee Weapon . | . . . Unidentified Prototypes . | . . . Parts Lost 1 | . 1 . Power . | . . . Propulsion 1 | . 1 . Utility . | . . . Weapon . | . . . Highest Loss Streak 1 | . 1 . To Critical Strikes . | . . . Average Slot Usage (%) 97 | . 99 77 Engine 13 | . 14 11 Treads 18 | . 18 22 Wheel 8 | . 8 . Storage 13 | . 14 11 Protection 12 | . 13 11 Ballistic Gun 27 | . 28 22 Naked Turns . | . . . Heaviest Build 34 | 15 34 34 Greatest Support 40 | 40 40 40 Greatest Overweight (x) 4 | 4 1 . Average Overweight (x) . | . . . Largest Inventory Capacity 15 | 8 15 15 Average Capacity 10 | 7 11 15 Most Carried 14 | 4 14 14 Average Carried 8 | 1 9 14 Final Capacity 15 | 8 15 15 Final Carried 14 | 4 14 14 Class Distribution -------------------- 100% | Mutant Dominant Class ---------------- Mutant | -10/Materials Mutant | -9/Materials Resources | -11 -10 -9 ----------- Run | Yrd Mat Mat Matter Collected 722 | 268 454 . Remotely . | . . . Salvage Created 702 | 86 476 140 Parts 36 | 7 25 4 Haulers Intercepted 2 | . 1 1 Recyclers Shooed . | . . . Parts Field Recycled . | . . . Retrieved Matter . | . . . Parts Self-Destructed . | . . . Prevented . | . . . Kills | -11 -10 -9 ------- Run | Yrd Mat Mat Combat Hostiles Destroyed 9 | . 9 . Guns 9 | . 9 . Classes Destroyed 7 | 2 4 1 Builder 1 | . . 1 Tunneler 1 | 1 . . Hauler 2 | . 1 1 Recycler 2 | 1 . 1 Operator 2 | . 2 . Watcher 2 | . 1 1 Grunt 9 | . 9 . Best Kill Streak 5 | 2 5 4 Combat Bots Only 4 | . 4 . Max Kills in Single Turn 3 | 1 1 3 Gunslinging . | . . . Exploded . | . . . Melee . | . . . Uniques/NPCs Destroyed . | . . . Combat | -11 -10 -9 -------- Run | Yrd Mat Mat Hostile Shots Fired 50 | . 48 2 Missed 8 | . 8 . Damage Taken 537 | . 504 33 Core 115 | . 97 18 Absorbed by Shields . | . . . Core Remaining (%) 80 | 100 61 . Volleys Fired 57 | 4 49 4 Largest 2 | 2 2 2 Hottest 46 | 40 46 46 Shots Fired 114 | 8 98 8 Gun 114 | 8 98 8 Cannon . | . . . Launcher . | . . . Special . | . . . Kinetic 114 | 8 98 8 Thermal . | . . . Explosive . | . . . Electromagnetic . | . . . Robot Hit Streak 9 | 4 9 3 Robot Miss Streak 4 | 1 4 4 Penetration Max . | . . . Secondary Targets 2 | . 2 . Max Gunslinging Chain 1 | . 1 . Shots Hit Robots 64 | 5 56 3 Core Hits 30 | 3 24 3 Critical Kills . | . . . Critical Parts Destroyed . | . . . Critical Strikes . | . . . Melee Attacks . | . . . Impact . | . . . Slashing . | . . . Piercing . | . . . Sneak Attacks . | . . . Combat Hostiles . | . . . Follow-up Attacks . | . . . Damage Inflicted 1270 | 59 797 414 Guns 900 | 59 793 48 Cannons . | . . . Explosions 366 | . . 366 Melee . | . . . Ramming 4 | . 4 . Kinetic 900 | 59 793 48 Thermal . | . . . Explosive 366 | . . 366 Electromagnetic . | . . . Impact . | . . . Slashing . | . . . Piercing . | . . . Highest Corruption . | . . . Average Corruption . | . . . Corruption Purged . | . . . Corruption Blocked . | . . . Overload Shots . | . . . Overflow Damage 62 | . . 62 Projectiles . | . . . Explosions 62 | . . 62 Melee . | . . . Knockbacks . | . . . Impact . | . . . Kinetic . | . . . Secondary . | . . . Self-Inflicted Damage . | . . . Shots . | . . . Rammed 1 | . 1 . Targets Rammed 1 | . 1 . Kicked . | . . . Crushed . | . . . Highest Temperature 133 | . 133 12 Average Temperature 42 | . 46 6 Received Heat Transfer 330 | . 321 9 Siege Activations . | . . . Robots Corrupted . | . . . Combat Hostiles . | . . . Parts Fried . | . . . Impact Corruptions . | . . . Robots Melted . | . . . Combat Hostiles . | . . . Parts Melted . | . . . Heat Transferred . | . . . Parts Sabotaged . | . . . Parts Stolen . | . . . Parts Stripped . | . . . Power Chain Reactions . | . . . Alert | -11 -10 -9 ------- Run | Yrd Mat Mat Peak Influence 184 | 10 184 145 Initial 53 | . 6 53 Average 73 | 3 87 60 Maximum Alert Level . | . . . Low Security (%) 100 | 100 100 100 Level 1 . | . . . Level 2 . | . . . Level 3 . | . . . Level 4 . | . . . Level 5 . | . . . High Security . | . . . Max Security . | . . . Squads Dispatched 3 | . 3 . Investigation 1 | . 1 . Extermination . | . . . Reinforcement 2 | . 2 . Assault . | . . . Garrison . | . . . Intercept . | . . . Searches Triggered . | . . . Construction Impeded . | . . . Haulers Reinforced . | . . . Active Scanning Responses . | . . . Cargo Convoy Interrupts . | . . . Stealth | -11 -10 -9 --------- Run | Yrd Mat Mat Distress Signals 2 | . 1 1 Communications Jammed . | . . . Distress Signals . | . . . Times Spotted 24 | . 21 3 Peak Tracking Total 6 | . 6 2 Tactical Retreats . | . . . Traps | -11 -10 -9 ------- Run | Yrd Mat Mat Traps Triggered . | . . . Indirectly . | . . . Trap Hack Attempts . | . . . Triggered . | . . . Disarmed . | . . . Reprogrammed . | . . . Reused . | . . . Traps Extracted . | . . . Installed . | . . . Triggered . | . . . Machines | -11 -10 -9 ---------- Run | Yrd Mat Mat Machines Disabled 2 | . . 2 Max in Single Turn 2 | . . 2 Machines Repaired . | . . . Machines Dismantled . | . . . Machines Sabotaged . | . . . Overloaded Fab Kills . | . . . Hacking | -11 -10 -9 --------- Run | Yrd Mat Mat Machines Accessed 1 | . 1 . Terminals 1 | . 1 . Fabricators . | . . . Repair Stations . | . . . Recycling Units . | . . . Scanalyzers . | . . . Garrison Access . | . . . Total Hacks 3 | . 3 . Successful 2 | . 2 . Failed 1 | . 1 . Catastrophic . | . . . Database Lockouts . | . . . Manual 2 | . 2 . Terminals 3 | . 3 . Fabricators . | . . . Repair Stations . | . . . Recycling Units . | . . . Scanalyzers . | . . . Garrison Access . | . . . Terminal Hacks 1 | . 1 . Alert Level 1 | . 1 . Fabricator Hacks . | . . . Repair Station Hacks . | . . . Recycling Unit Hacks . | . . . Scanalyzer . | . . . Garrison Access Hacks . | . . . Unauthorized Hacks 1 | . 1 . Terminals 1 | . 1 . Botnet 1 | . 1 . Fabricators . | . . . Repair Stations . | . . . Recycling Units . | . . . Scanalyzers . | . . . Garrison Access . | . . . Data Cores Recovered . | . . . Used . | . . . Hacking Detections 1 | . 1 . Full Trace Events 1 | . 1 . Feedback Events . | . . . Feedback Blocked . | . . . Robot Schematics Acquired . | . . . Robots Built . | . . . Authchips . | . . . Time . | . . . Total Robot Build Rating . | . . . Part Schematics Acquired . | . . . Parts Built . | . . . Authchips . | . . . Time . | . . . Total Part Build Rating . | . . . Parts Repaired . | . . . Time . | . . . Parts Recycled . | . . . Recycled Matter . | . . . Retrieved Matter . | . . . Retrieved Components . | . . . Parts Scanalyzed . | . . . Part Schematics Acquired . | . . . Parts Damaged . | . . . Bothacking | -11 -10 -9 ------------ Run | Yrd Mat Mat Used RIF Installer . | . . . Robots Hacked . | . . . Non-combat . | . . . Combat . | . . . Robot Hacks Applied . | . . . Relay Couplers Released . | . . . Fabnet Peak Effective % . | . . . Robots Rewired . | . . . Allies Hacked . | . . . Hacks Repelled . | . . . Allies | -11 -10 -9 -------- Run | Yrd Mat Mat Total Allies . | . . . Largest Group . | . . . Highest-Rated Group . | . . . Highest-Rated Ally . | . . . Total Orders . | . . . Ally Attacks . | . . . Total Damage . | . . . Kills . | . . . Allies Corrupted . | . . . Allies Melted . | . . . Intel | -11 -10 -9 ------- Run | Yrd Mat Mat Robot Analysis Total . | . . . Derelict Logs Recovered . | . . . Drone Launches . | . . . Drone Recoveries . | . . . Exploration | -11 -10 -9 ------------- Run | Yrd Mat Mat Turns Passed 783 | 121 616 46 Spaces Moved 445 | 70 353 22 Core 9 | 9 . . Treads 259 | 45 192 22 Legs . | . . . Wheels 177 | 16 161 . Hover . | . . . Flight . | . . . Fastest Speed 50 | 50 80 160 Average Speed 127 | 131 124 160 Slowest Speed 250 | 250 160 160 Overloaded Moves . | . . . Propulsion Burnouts . | . . . Robots Hopped . | . . . Cave-ins Triggered . | . . . Exploration Rate (%) 22 | 5 56 6 Regions Visited 2 Branch Regions . Pre-discovered Areas . | . . . Known Exits Taken . | . . . Unknown Exits Taken 2 | 1 1 . Scrap Searched . | . . . Spaces Dug . | . . . Terrain Destroyed 23 | . . 23 Melee . | . . . Projectile . | . . . AOE 23 | . . 23 Terrain Rammed . | . . . Walls Destroyed . | . . . Machines Disabled . | . . . Actions | -11 -10 -9 --------- Run | Yrd Mat Mat Total 555 | 87 442 26 Wait 12 | 1 11 . Move 443 | 69 352 22 Hop . | . . . Pick Up 13 | 2 11 . Fast Attach 11 | 9 2 . Attach 1 | . 1 . Detach 3 | 2 1 . Swap 6 | . 6 . Drop 8 | . 8 . Fire 57 | 4 49 4 Melee . | . . . Ram . | . . . Kick . | . . . Crush 1 | . 1 . Escape Stasis . | . . . Rewire . | . . . Trap . | . . . Miscellaneous . | . . . Route ------- -11/Scrapyard -10/Materials (discovered 3 exits: [*Mat] / [*Min x2]) -9/Materials History --------- Turn | Location | Event 9 | -11/Scrapyard | Discovered new exit (range 14) 122 | -11/Scrapyard | Entered Materials 122 | -10/Materials | Discovered new exit (range 14) 250 | -10/Materials | Discovered new exit (range 15) 303 | -10/Materials | Build established: Mutant 492 | -10/Materials | Discovered new exit (range 16) 738 | -10/Materials | Entered another Materials area 738 | -9/Materials | Evolved 2 slots: Utility x2 784 | -9/Materials | Self-destructed Last Messages --------------- 00647_ R-06 Scavenger collects Sml. Laser. 00651_ R-06 Scavenger collects Lgt. Ion Engine. 00654_ R-06 Scavenger collects Heat Sink. 00667_ Destroyed Lgt. Ion Engine. 00667_ O-16 Technician destroyed. 00669_ Acquired 16 matter. 00672_ Acquired Hacking Suite. 00709_ Acquired Lgt. Cannon. PARAMETERS=UTILITY+2 LOCATION=UNKNOWN GOAL=ESCAPE 00773_ W-16 Scout sends out distress signal. 00781_ W-16 Scout destroyed. 00782_ Nuclear Reactor explodes. 00782_ U-05 Engineer destroyed. 00782_ Nuclear Reactor explodes. 00782_ A-02 Transporter destroyed. 00782_ Destroyed Wheel. 00782_ Destroyed Lgt. Ion Engine. 00782_ Destroyed Wheel. Map ----- +----------------------------------------------------+ | | | | | ?????????????????????????????????????????????????? | | ?????????????????????????????????????????????????? | | ?????????????????????????????????????????????????? | | ?????????????????????????????????????????????????? | | ?????????????????????????############### ???????? | | ??????????????????????#### ??????? | | ?????????????????????##! ??????? | | ?????????????????????#! ??????? | | ?????????????????????#! ###########?????????? | | ?????????????????????#! #???????????????????? | | ?????????????????????#! ########????????????? | | ?????????????????????##! # ???????????? | | ??????????????????????#### # """ #??????????? | | ?????????????????????????# # """ #??????????? | | ?????????????????????????# # """ #??????????? | | ?????????????????????????# + #??????????? | | ?????????????????????????# # """ #??????????? | | ?????????????????????????# # """ #??????????? | | ?????????????????????????# # """ #??????????? | | ?????????????????????????# # ???????????? | | ?????????????????????????# ########????????????? | | ????????????????# ??????# #???????????????????? | | ?????????????????## ### #???????????????????? | | ?????????????????# @% #???????????????????? | | ????????????# ! #???????????????????? | | ??????????Y ! [ #???????????????????? | | ??????????? % #######???????????????????? | | ??????????? m [ ??????????????????????????? | | ???????????? ???????????????????????????? | | ???????????? ????????????????????????????? | | ???????????? ?????????????????????????????? | | ????????????? ??????????????????????????????? | | ????????????? ???????????????????????????????? | | ?????????????? ???????????????????????????????? | | ?????????????? ????????????????????????????????? | | ?????????????????????????????????????????????????? | | ?????????????????????????????????????????????????? | | ?????????????????????????????????????????????????? | | ?????????????????????????????????????????????????? | | ?????????????????????????????????????????????????? | | ?????????????????????????????????????????????????? | | ?????????????????????????????????????????????????? | | ?????????????????????????????????????????????????? | | ?????????????????????????????????????????????????? | | ?????????????????????????????????????????????????? | | ?????????????????????????????????????????????????? | | ?????????????????????????????????????????????????? | | ?????????????????????????????????????????????????? | +----------------------------------------------------+ Best States ------------- Heat Dissipation 28 Energy Generation 10 Energy Capacity 250 Matter Stores 300 Matter Capacity 300 Sight Range 16 Terrain Scan Range 16 Terrain Scan Density 10 Armor Coverage 150 Evasion (%) 44 Recoil Reduction 2 Item Schematics ----------------- None Robot Schematics ------------------ None Fabricated ------------ Nothing Alien Tech Used ----------------- None Achievements -------------- None Challenges ------------ None Game ------ Seed CoreDrainedAnalyzer Manual? 0 Play Time 00:10:02 Cumulative 43.6 hours Start 2024.04.07 @ 18:59:00 End 2024.04.07 @ 19:13:29 Sessions 1 Manual Loads 0 Difficulty Rogue Special Mode None Game No. 49 Rogue 49 Adventurer 0 Explorer 0 Win Type - Total 0 Types 0/0/0/0/0/0/0/0/0 Lore% 20 Gallery% 37 Achievement% 32 Wizard Run 0 Options --------- Layout 0 ASCII 0 Keyboard 0 Movement Mouse Keybinds 0 Fullscreen 2 Font 24/Smallcaps Map View 76x50 Zoom Use 0% Tactical HUD 1 Map Filters NONE Filters NONE Steam 1 RUN: ce904eb0-2cf2-4a8b-aec8-b4cd5f3bc4f3